[Event "*** Titled Tuesday Blitz"]
[Site "Chess.com"]
[Date "2021.03.30"]
[Round "1"]
[White "SARGISMV"]
[Black "GigaQuparadze"]
[Result "0-1"]
[WhiteElo "2453"]
[BlackElo "2869"]
[TimeControl "180+1"]
[EndTime "10:07:12 PDT"]
[Termination "GigaQuparadze won by resignation"]

1. d4 {[%clk 0:03:00.9]} 1... Nf6 {[%clk 0:02:59.8]} 2. c4 {[%clk 0:03:00.8]}
2... e6 {[%clk 0:02:59.8]} 3. Nc3 {[%clk 0:03:01.1]} 3... Bb4 {[%clk 0:02:59.1]}
4. Bd2 {[%clk 0:03:00.7]} 4... O-O {[%clk 0:02:58.4]} 5. Nf3 {[%clk 0:03:00.2]}
5... b6 {[%clk 0:02:58]} 6. e3 {[%clk 0:02:51.5]} 6... Bb7 {[%clk 0:02:57.9]} 7.
Bd3 {[%clk 0:02:51.2]} 7... Bxc3 {[%clk 0:02:55.5]} 8. Bxc3 {[%clk 0:02:51.1]}
8... Ne4 {[%clk 0:02:55.6]} 9. Bxe4 {[%clk 0:02:51]} 9... Bxe4 {[%clk
0:02:56.5]} 10. d5 {[%clk 0:02:51.7]} 10... exd5 {[%clk 0:02:51.8]} 11. cxd5
{[%clk 0:02:50.5]} 11... c5 {[%clk 0:02:51.4]} 12. dxc6 {[%clk 0:02:36.6]} 12...
dxc6 {[%clk 0:02:48]} 13. Qa4 {[%clk 0:02:27.2]} 13... Qe7 {[%clk 0:02:31.4]}
14. Qd4 {[%clk 0:02:17.5]} 14... f6 {[%clk 0:02:31]} 15. O-O-O {[%clk
0:02:08.3]} 15... c5 {[%clk 0:02:30.3]} 16. Qd6 {[%clk 0:02:03.6]} 16... Nc6
{[%clk 0:02:26.3]} 17. Qxe7 {[%clk 0:02:01.1]} 17... Nxe7 {[%clk 0:02:27.2]} 18.
Rd7 {[%clk 0:02:01.2]} 18... Nd5 {[%clk 0:02:27.4]} 19. Rd1 {[%clk 0:01:52.4]}
19... Rfd8 {[%clk 0:02:26.7]} 20. Rxd8+ {[%clk 0:01:37.7]} 20... Rxd8 {[%clk
0:02:27.6]} 21. Be1 {[%clk 0:01:33.7]} 21... Kf7 {[%clk 0:02:20.7]} 22. b3
{[%clk 0:01:17.5]} 22... Ke8 {[%clk 0:02:19.2]} 23. h4 {[%clk 0:01:06.3]} 23...
g6 {[%clk 0:02:16.6]} 24. Kb2 {[%clk 0:01:03.3]} 24... h6 {[%clk 0:02:16.3]} 25.
Bc3 {[%clk 0:01:01.7]} 25... g5 {[%clk 0:02:16.3]} 26. hxg5 {[%clk 0:00:59.2]}
26... hxg5 {[%clk 0:02:16.2]} 27. Ne1 {[%clk 0:00:58.2]} 27... Bg6 {[%clk
0:02:03.5]} 28. Rd2 {[%clk 0:00:52]} 28... g4 {[%clk 0:02:01.1]} 29. a3 {[%clk
0:00:45]} 29... Rd7 {[%clk 0:02:00.8]} 30. g3 {[%clk 0:00:43]} 30... a5 {[%clk
0:01:53.9]} 31. Ng2 {[%clk 0:00:42.7]} 31... Nxc3 {[%clk 0:01:18.3]} 32. Kxc3
{[%clk 0:00:41.7]} 32... Rxd2 {[%clk 0:01:10]} 33. Kxd2 {[%clk 0:00:42.6]} 33...
Be4 {[%clk 0:01:09.7]} 34. Nf4 {[%clk 0:00:42.6]} 34... Ke7 {[%clk 0:01:09.6]}
35. Kc3 {[%clk 0:00:41.8]} 35... Kd6 {[%clk 0:01:08.6]} 36. Kc4 {[%clk
0:00:38.7]} 36... Bc6 {[%clk 0:01:08.4]} 37. a4 {[%clk 0:00:39]} 37... Be8
{[%clk 0:01:07.3]} 38. Nd3 {[%clk 0:00:31.5]} 38... Bf7+ {[%clk 0:01:04.5]} 39.
Kc3 {[%clk 0:00:27.9]} 39... Kd5 {[%clk 0:01:04.2]} 40. Nc1 {[%clk 0:00:17.8]}
40... Ke4 {[%clk 0:01:03.4]} 41. Nd3 {[%clk 0:00:11.7]} 41... Bxb3 {[%clk
0:00:56]} 42. Nxc5+ {[%clk 0:00:10.5]} 42... bxc5 {[%clk 0:00:55.7]} 43. Kxb3
{[%clk 0:00:11.4]} 43... Kd3 {[%clk 0:00:56.1]} 44. Kb2 {[%clk 0:00:10.7]} 44...
c4 {[%clk 0:00:54]} 45. Kc1 {[%clk 0:00:10.6]} 45... Ke2 {[%clk 0:00:54.1]} 46.
Kc2 {[%clk 0:00:09.2]} 46... Kxf2 {[%clk 0:00:54.3]} 47. Kc3 {[%clk 0:00:09.8]}
47... Kxg3 {[%clk 0:00:54.6]} 48. Kxc4 {[%clk 0:00:10.6]} 48... Kf3 {[%clk
0:00:55.5]} 49. Kd4 {[%clk 0:00:10.9]} 49... g3 {[%clk 0:00:55.9]} 50. e4 {[%clk
0:00:11.8]} 50... g2 {[%clk 0:00:56]} 51. e5 {[%clk 0:00:12.7]} 51... g1=Q+
{[%clk 0:00:56.2]} 52. Kd5 {[%clk 0:00:12.6]} 52... fxe5 {[%clk 0:00:57.1]} 0-1

[Event "*** Titled Tuesday Blitz"]
[Site "Chess.com"]
[Date "2021.03.30"]
[Round "1"]
[White "Spriteball"]
[Black "Witik"]
[Result "0-1"]
[WhiteElo "2381"]
[BlackElo "2708"]
[TimeControl "180+1"]
[EndTime "10:07:12 PDT"]
[Termination "Witik won by resignation"]

1. d4 {[%clk 0:02:59.8]} 1... d5 {[%clk 0:02:58.6]} 2. c4 {[%clk 0:02:59.7]}
2... e6 {[%clk 0:02:58.9]} 3. Nf3 {[%clk 0:02:59.4]} 3... c6 {[%clk 0:02:59.2]}
4. Nc3 {[%clk 0:02:58.4]} 4... dxc4 {[%clk 0:02:59.2]} 5. a4 {[%clk 0:02:55.3]}
5... Bb4 {[%clk 0:02:58.8]} 6. e3 {[%clk 0:02:52.8]} 6... b5 {[%clk 0:02:53.4]}
7. Be2 {[%clk 0:02:41.2]} 7... Bb7 {[%clk 0:02:35.8]} 8. O-O {[%clk 0:02:39.2]}
8... a6 {[%clk 0:02:34.8]} 9. Qc2 {[%clk 0:02:33.8]} 9... Nf6 {[%clk 0:02:30.6]}
10. b3 {[%clk 0:02:31]} 10... cxb3 {[%clk 0:02:19.5]} 11. Qxb3 {[%clk
0:02:30.3]} 11... Be7 {[%clk 0:02:09.2]} 12. Bd2 {[%clk 0:02:01]} 12... Nbd7
{[%clk 0:01:46.5]} 13. Rfc1 {[%clk 0:01:59.1]} 13... O-O {[%clk 0:01:45]} 14. e4
{[%clk 0:01:53.1]} 14... b4 {[%clk 0:01:24.3]} 15. Nd1 {[%clk 0:01:21.7]} 15...
a5 {[%clk 0:01:19.9]} 16. Bd3 {[%clk 0:01:17.3]} 16... c5 {[%clk 0:01:19]} 17.
e5 {[%clk 0:00:58.7]} 17... Nd5 {[%clk 0:01:05.8]} 18. Ne3 {[%clk 0:00:50.3]}
18... cxd4 {[%clk 0:01:02.3]} 19. Nxd4 {[%clk 0:00:49.8]} 19... Nxe5 {[%clk
0:01:00.9]} 20. Bb1 {[%clk 0:00:39.6]} 20... Nf4 {[%clk 0:00:52.2]} 21. Qc2
{[%clk 0:00:35.5]} 21... g6 {[%clk 0:00:44.9]} 22. Qc7 {[%clk 0:00:34.2]} 22...
Ba6 {[%clk 0:00:15.4]} 23. Qxe5 {[%clk 0:00:26.3]} 23... Qxd4 {[%clk 0:00:15.3]}
24. Qxd4 {[%clk 0:00:20.6]} 24... Ne2+ {[%clk 0:00:15.3]} 25. Kh1 {[%clk
0:00:21.1]} 25... Nxd4 {[%clk 0:00:16.2]} 26. Be4 {[%clk 0:00:19.9]} 26... Rad8
{[%clk 0:00:11.1]} 27. Be1 {[%clk 0:00:15.3]} 27... Nb3 {[%clk 0:00:11.1]} 28.
Rab1 {[%clk 0:00:14.4]} 28... Nxc1 {[%clk 0:00:11.1]} 29. Rxc1 {[%clk
0:00:14.6]} 29... Rc8 {[%clk 0:00:11.1]} 30. Rb1 {[%clk 0:00:14.1]} 30... Rfd8
{[%clk 0:00:10.6]} 31. f3 {[%clk 0:00:14.1]} 31... f5 {[%clk 0:00:10.5]} 32. Bc2
{[%clk 0:00:11.6]} 32... Rxc2 {[%clk 0:00:09.2]} 33. Nxc2 {[%clk 0:00:11.2]}
33... Bd3 {[%clk 0:00:09.8]} 34. Rc1 {[%clk 0:00:07.3]} 34... Rc8 {[%clk
0:00:09.5]} 0-1

[Event "*** Titled Tuesday Blitz"]
[Site "Chess.com"]
[Date "2021.03.30"]
[Round "1"]
[White "chesslh19"]
[Black "biostatistician"]
[Result "0-1"]
[WhiteElo "2216"]
[BlackElo "2537"]
[TimeControl "180+1"]
[EndTime "10:07:13 PDT"]
[Termination "biostatistician won by resignation"]

1. e4 {[%clk 0:02:40.2]} 1... e6 {[%clk 0:02:58.6]} 2. d4 {[%clk 0:02:39.8]}
2... d5 {[%clk 0:02:59.5]} 3. Nd2 {[%clk 0:02:37.8]} 3... Nc6 {[%clk 0:03:00]}
4. Ngf3 {[%clk 0:02:37.2]} 4... Nf6 {[%clk 0:03:00.3]} 5. e5 {[%clk 0:02:34.9]}
5... Ne4 {[%clk 0:03:00.8]} 6. Bd3 {[%clk 0:02:24.7]} 6... Nxd2 {[%clk
0:03:00.4]} 7. Bxd2 {[%clk 0:02:24.7]} 7... Nb4 {[%clk 0:03:01]} 8. Be2 {[%clk
0:01:38.5]} 8... c5 {[%clk 0:03:01.3]} 9. c3 {[%clk 0:01:38.6]} 9... Nc6 {[%clk
0:03:01.4]} 10. O-O {[%clk 0:01:30.5]} 10... Bd7 {[%clk 0:03:01.7]} 11. a3
{[%clk 0:01:22.2]} 11... cxd4 {[%clk 0:02:46]} 12. cxd4 {[%clk 0:01:21.9]} 12...
Qb6 {[%clk 0:02:46.5]} 13. Bc3 {[%clk 0:01:10.9]} 13... Na5 {[%clk 0:02:45.7]}
14. Bxa5 {[%clk 0:00:52.3]} 14... Qxa5 {[%clk 0:02:45.8]} 15. Rc1 {[%clk
0:00:45.2]} 15... Be7 {[%clk 0:02:44.7]} 16. Bd3 {[%clk 0:00:44.1]} 16... O-O
{[%clk 0:02:42.4]} 17. Qd2 {[%clk 0:00:42.9]} 17... Qxd2 {[%clk 0:02:34.8]} 18.
Nxd2 {[%clk 0:00:42.8]} 18... Rfc8 {[%clk 0:02:35.7]} 19. f4 {[%clk 0:00:39.9]}
19... f5 {[%clk 0:02:28.1]} 20. Kf2 {[%clk 0:00:24.3]} 20... h6 {[%clk
0:02:27.7]} 21. Ke3 {[%clk 0:00:23.8]} 21... g5 {[%clk 0:02:28.1]} 22. g3 {[%clk
0:00:24]} 22... Kg7 {[%clk 0:02:27.7]} 23. Nf3 {[%clk 0:00:22.2]} 23... Be8
{[%clk 0:02:17.3]} 24. Kd2 {[%clk 0:00:20.4]} 24... Bh5 {[%clk 0:02:17]} 25. Be2
{[%clk 0:00:18.6]} 25... Bg4 {[%clk 0:02:17]} 26. Rxc8 {[%clk 0:00:15.6]} 26...
Rxc8 {[%clk 0:02:17.1]} 27. Rc1 {[%clk 0:00:16.5]} 27... Rxc1 {[%clk 0:02:17.6]}
28. Kxc1 {[%clk 0:00:17.4]} 28... Bd8 {[%clk 0:02:15.4]} 29. Kd2 {[%clk
0:00:16.9]} 29... Kg6 {[%clk 0:02:14.4]} 30. Ke3 {[%clk 0:00:16.7]} 30... Bb6
{[%clk 0:02:14.4]} 31. Bb5 {[%clk 0:00:11.8]} 31... Bd8 {[%clk 0:02:05.2]} 32.
Bd7 {[%clk 0:00:10.9]} 32... Kf7 {[%clk 0:02:05.2]} 33. Bc8 {[%clk 0:00:10.9]}
33... b6 {[%clk 0:02:04.8]} 34. Bd7 {[%clk 0:00:04.9]} 34... Be7 {[%clk
0:01:57]} 35. Bc8 {[%clk 0:00:04.9]} 35... Bh3 {[%clk 0:01:56]} 36. Bd7 {[%clk
0:00:04.9]} 36... Bf1 {[%clk 0:01:54.9]} 37. Bc8 {[%clk 0:00:04.8]} 37... Bb5
{[%clk 0:01:55.1]} 38. Bb7 {[%clk 0:00:04.5]} 38... Ke8 {[%clk 0:01:51.7]} 39.
Ne1 {[%clk 0:00:03.5]} 39... Kd7 {[%clk 0:01:46.9]} 40. b3 {[%clk 0:00:03.5]}
40... Kc7 {[%clk 0:01:45]} 41. a4 {[%clk 0:00:03.9]} 41... Bxa4 {[%clk
0:01:31.7]} 42. bxa4 {[%clk 0:00:04]} 42... Kxb7 {[%clk 0:01:31.9]} 43. Nd3
{[%clk 0:00:04.5]} 43... Kc6 {[%clk 0:01:30.4]} 44. Kd2 {[%clk 0:00:04.6]} 44...
b5 {[%clk 0:01:29.6]} 45. axb5+ {[%clk 0:00:04.7]} 45... Kxb5 {[%clk 0:01:30.5]}
46. Kc3 {[%clk 0:00:04.5]} 46... a5 {[%clk 0:01:30.7]} 47. Nf2 {[%clk 0:00:03]}
47... g4 {[%clk 0:01:25]} 48. h3 {[%clk 0:00:02.5]} 48... h5 {[%clk 0:01:24]}
49. hxg4 {[%clk 0:00:02.6]} 49... hxg4 {[%clk 0:01:24.9]} 50. Nd3 {[%clk
0:00:02.3]} 50... Bb4+ {[%clk 0:01:25.2]} 51. Kc2 {[%clk 0:00:01.8]} 51... Kc4
{[%clk 0:01:24.3]} 52. Nb2+ {[%clk 0:00:01.6]} 52... Kxd4 {[%clk 0:01:24]} 53.
Na4 {[%clk 0:00:02.5]} 53... Ke4 {[%clk 0:01:23]} 54. Nb6 {[%clk 0:00:02.7]}
54... Kf3 {[%clk 0:01:23]} 55. Nd7 {[%clk 0:00:01.9]} 55... Kxg3 {[%clk
0:01:23.1]} 56. Nf6 {[%clk 0:00:01.7]} 56... Kxf4 {[%clk 0:01:23.1]} 57. Nd7
{[%clk 0:00:02]} 57... g3 {[%clk 0:01:22.7]} 0-1

[Event "*** Titled Tuesday Blitz"]
[Site "Chess.com"]
[Date "2021.03.30"]
[Round "1"]
[White "matecontomate123"]
[Black "tptagain"]
[Result "0-1"]
[WhiteElo "2427"]
[BlackElo "2826"]
[TimeControl "180+1"]
[EndTime "10:07:14 PDT"]
[Termination "tptagain won on time"]

1. Nf3 {[%clk 0:03:00.9]} 1... b6 {[%clk 0:02:58.8]} 2. e4 {[%clk 0:03:00.4]}
2... Bb7 {[%clk 0:02:59.2]} 3. Qe2 {[%clk 0:03:00.3]} 3... c5 {[%clk 0:02:57.1]}
4. c4 {[%clk 0:02:59.6]} 4... Nc6 {[%clk 0:02:56.5]} 5. Nc3 {[%clk 0:02:59.1]}
5... g6 {[%clk 0:02:56.4]} 6. d3 {[%clk 0:02:58.2]} 6... Bg7 {[%clk 0:02:56.4]}
7. g3 {[%clk 0:02:57.5]} 7... d6 {[%clk 0:02:54.6]} 8. Bg2 {[%clk 0:02:57.1]}
8... Nf6 {[%clk 0:02:54.7]} 9. h3 {[%clk 0:02:56.1]} 9... O-O {[%clk 0:02:50.1]}
10. O-O {[%clk 0:02:55.8]} 10... e6 {[%clk 0:02:49]} 11. Rd1 {[%clk 0:02:49.6]}
11... Nd7 {[%clk 0:02:48]} 12. Be3 {[%clk 0:02:45.4]} 12... Nde5 {[%clk
0:02:46.2]} 13. Nxe5 {[%clk 0:02:41.7]} 13... Bxe5 {[%clk 0:02:41.7]} 14. f4
{[%clk 0:02:39.4]} 14... Bg7 {[%clk 0:02:41.6]} 15. Qf2 {[%clk 0:02:26.1]} 15...
Re8 {[%clk 0:02:32.4]} 16. Rac1 {[%clk 0:02:25.1]} 16... a6 {[%clk 0:02:29.4]}
17. b3 {[%clk 0:02:24.4]} 17... Qd7 {[%clk 0:02:27.2]} 18. Ne2 {[%clk
0:02:06.1]} 18... b5 {[%clk 0:02:15.5]} 19. d4 {[%clk 0:02:02.6]} 19... cxd4
{[%clk 0:02:13.6]} 20. Nxd4 {[%clk 0:02:01.4]} 20... bxc4 {[%clk 0:01:54.7]} 21.
Nxc6 {[%clk 0:01:52.5]} 21... Bxc6 {[%clk 0:01:53.2]} 22. Rxc4 {[%clk
0:01:51.7]} 22... d5 {[%clk 0:01:38.7]} 23. exd5 {[%clk 0:01:42.8]} 23... Bxd5
{[%clk 0:01:38.2]} 24. Bxd5 {[%clk 0:01:36.5]} 24... exd5 {[%clk 0:01:39.1]} 25.
Rc2 {[%clk 0:01:29.6]} 25... Qxh3 {[%clk 0:01:31.8]} 26. Rxd5 {[%clk 0:01:27.4]}
26... Re4 {[%clk 0:01:08.4]} 27. Rcd2 {[%clk 0:01:18]} 27... Rae8 {[%clk
0:01:06.5]} 28. Rd8 {[%clk 0:01:13.7]} 28... h5 {[%clk 0:01:06]} 29. Qf3 {[%clk
0:00:52.4]} 29... Re7 {[%clk 0:00:44.2]} 30. Bf2 {[%clk 0:00:41.6]} 30... Kh7
{[%clk 0:00:40.3]} 31. Rxe8 {[%clk 0:00:40.5]} 31... Rxe8 {[%clk 0:00:41.2]} 32.
Re2 {[%clk 0:00:39]} 32... Rc8 {[%clk 0:00:38.8]} 33. Be3 {[%clk 0:00:26.2]}
33... Rc3 {[%clk 0:00:36.8]} 34. Qg2 {[%clk 0:00:25]} 34... Qg4 {[%clk
0:00:32.5]} 35. Re1 {[%clk 0:00:21]} 35... Bd4 {[%clk 0:00:29.9]} 36. Bxd4
{[%clk 0:00:16.7]} 36... Rxg3 {[%clk 0:00:29.7]} 37. Qxg3 {[%clk 0:00:16.6]}
37... Qxg3+ {[%clk 0:00:30.6]} 38. Kf1 {[%clk 0:00:16.2]} 38... Qd3+ {[%clk
0:00:31.2]} 0-1

[Event "*** Titled Tuesday Blitz"]
[Site "Chess.com"]
[Date "2021.03.30"]
[Round "1"]
[White "Volodar_Murzin"]
[Black "ZEN-22"]
[Result "1-0"]
[WhiteElo "2766"]
[BlackElo "2410"]
[TimeControl "180+1"]
[EndTime "10:07:16 PDT"]
[Termination "Volodar_Murzin won by checkmate"]

1. e4 {[%clk 0:03:00.2]} 1... d5 {[%clk 0:02:54.4]} 2. exd5 {[%clk 0:03:00]}
2... c6 {[%clk 0:02:40.8]} 3. d4 {[%clk 0:02:54.8]} 3... cxd5 {[%clk 0:02:39.2]}
4. Bd3 {[%clk 0:02:53.4]} 4... Nc6 {[%clk 0:02:39.2]} 5. c3 {[%clk 0:02:52.9]}
5... e5 {[%clk 0:02:38.7]} 6. dxe5 {[%clk 0:02:38.6]} 6... Nxe5 {[%clk
0:02:37.6]} 7. Bb5+ {[%clk 0:02:32.8]} 7... Nc6 {[%clk 0:02:36.7]} 8. Nf3 {[%clk
0:02:29.1]} 8... Bc5 {[%clk 0:02:36.3]} 9. O-O {[%clk 0:02:27.6]} 9... Nf6
{[%clk 0:02:35.6]} 10. Nbd2 {[%clk 0:02:13.3]} 10... O-O {[%clk 0:02:29.6]} 11.
Nb3 {[%clk 0:02:10.8]} 11... Bb6 {[%clk 0:02:29.4]} 12. Nfd4 {[%clk 0:01:57]}
12... Qd6 {[%clk 0:02:20.4]} 13. Bd3 {[%clk 0:01:36]} 13... h6 {[%clk
0:02:07.8]} 14. Re1 {[%clk 0:01:12.7]} 14... Ng4 {[%clk 0:02:01.5]} 15. g3
{[%clk 0:01:06.3]} 15... Qf6 {[%clk 0:01:58.8]} 16. Bf4 {[%clk 0:00:48]} 16...
g5 {[%clk 0:01:53.8]} 17. Be3 {[%clk 0:00:46.1]} 17... Re8 {[%clk 0:01:52.9]}
18. Qd2 {[%clk 0:00:33.6]} 18... Bd7 {[%clk 0:01:41.2]} 19. Bf1 {[%clk
0:00:21.5]} 19... Nce5 {[%clk 0:01:37.6]} 20. f4 {[%clk 0:00:12.2]} 20... Nf3+
{[%clk 0:01:10.7]} 21. Nxf3 {[%clk 0:00:10.3]} 21... Bxe3+ {[%clk 0:01:07.9]}
22. Rxe3 {[%clk 0:00:09.5]} 22... Nxe3 {[%clk 0:01:05.6]} 23. Nbd4 {[%clk
0:00:03.5]} 23... gxf4 {[%clk 0:01:04.6]} 24. gxf4 {[%clk 0:00:02.2]} 24... Qg7+
{[%clk 0:01:03.1]} 25. Kh1 {[%clk 0:00:02.1]} 25... Bg4 {[%clk 0:01:02.7]} 26.
Bd3 {[%clk 0:00:02.1]} 26... Qf6 {[%clk 0:00:53.5]} 27. Rg1 {[%clk 0:00:02.1]}
27... Qxf4 {[%clk 0:00:53.4]} 28. h3 {[%clk 0:00:02.1]} 28... h5 {[%clk
0:00:50.2]} 29. Rxg4+ {[%clk 0:00:02.7]} 29... hxg4 {[%clk 0:00:50.1]} 30. hxg4
{[%clk 0:00:03.6]} 30... Kg7 {[%clk 0:00:49.5]} 31. Nh4 {[%clk 0:00:02]} 31...
Rh8 {[%clk 0:00:47.7]} 32. Nf5+ {[%clk 0:00:02.2]} 32... Nxf5 {[%clk 0:00:47]}
33. Qxf4 {[%clk 0:00:01.9]} 33... Rxh4+ {[%clk 0:00:45.6]} 34. Kg1 {[%clk
0:00:02.5]} 34... Rah8 {[%clk 0:00:38.8]} 35. Qg5+ {[%clk 0:00:03]} 35... Kf8
{[%clk 0:00:37.7]} 36. Qd8+ {[%clk 0:00:02.9]} 36... Kg7 {[%clk 0:00:37.8]} 37.
Qg5+ {[%clk 0:00:03.6]} 37... Kf8 {[%clk 0:00:37]} 38. Bxf5 {[%clk 0:00:03.6]}
38... R4h6 {[%clk 0:00:34.4]} 39. Kf2 {[%clk 0:00:04]} 39... f6 {[%clk
0:00:32.6]} 40. Qf4 {[%clk 0:00:03.8]} 40... Rh2+ {[%clk 0:00:33.5]} 41. Ke3
{[%clk 0:00:03.9]} 41... R8h3+ {[%clk 0:00:33.7]} 42. Kd4 {[%clk 0:00:04.4]}
42... Rg2 {[%clk 0:00:32.9]} 43. Qd6+ {[%clk 0:00:04.4]} 43... Kg7 {[%clk
0:00:32.6]} 44. Qe7+ {[%clk 0:00:04.7]} 44... Kh6 {[%clk 0:00:33]} 45. Qxf6#
{[%clk 0:00:05.2]} 1-0

[Event "*** Titled Tuesday Blitz"]
[Site "Chess.com"]
[Date "2021.03.30"]
[Round "1"]
[White "woodhy"]
[Black "iwanyu"]
[Result "0-1"]
[WhiteElo "2452"]
[BlackElo "2862"]
[TimeControl "180+1"]
[EndTime "10:07:17 PDT"]
[Termination "iwanyu won by resignation"]

1. e4 {[%clk 0:02:41]} 1... e5 {[%clk 0:02:58.7]} 2. Nf3 {[%clk 0:02:38.3]} 2...
Nc6 {[%clk 0:02:59]} 3. Bb5 {[%clk 0:02:35.2]} 3... a6 {[%clk 0:02:58.8]} 4.
Bxc6 {[%clk 0:02:29.7]} 4... dxc6 {[%clk 0:02:59.7]} 5. O-O {[%clk 0:02:29.9]}
5... Qf6 {[%clk 0:02:58.5]} 6. c3 {[%clk 0:02:26]} 6... Ne7 {[%clk 0:02:41.9]}
7. d4 {[%clk 0:02:23.3]} 7... Ng6 {[%clk 0:02:37.5]} 8. Bg5 {[%clk 0:02:12.1]}
8... Qd6 {[%clk 0:02:35.8]} 9. Nbd2 {[%clk 0:02:07.6]} 9... Be6 {[%clk
0:02:27.8]} 10. Re1 {[%clk 0:01:58.1]} 10... f6 {[%clk 0:02:27.3]} 11. Be3
{[%clk 0:01:49.4]} 11... Be7 {[%clk 0:02:23.8]} 12. Qe2 {[%clk 0:01:40.1]} 12...
exd4 {[%clk 0:01:52.3]} 13. Nxd4 {[%clk 0:01:17.1]} 13... O-O {[%clk 0:01:38.9]}
14. Nc4 {[%clk 0:01:10.7]} 14... Qd7 {[%clk 0:01:33.3]} 15. Rad1 {[%clk
0:01:06.5]} 15... Qc8 {[%clk 0:01:33.2]} 16. f4 {[%clk 0:00:58.1]} 16... Bg4
{[%clk 0:01:28.8]} 17. Nf3 {[%clk 0:00:46.3]} 17... Nh4 {[%clk 0:01:24.3]} 18.
Ncd2 {[%clk 0:00:39.8]} 18... Qe6 {[%clk 0:01:22.5]} 19. a3 {[%clk 0:00:33.3]}
19... Nxf3+ {[%clk 0:01:19.3]} 20. gxf3 {[%clk 0:00:29.4]} 20... Bh5 {[%clk
0:01:19.7]} 21. Kh1 {[%clk 0:00:23.5]} 21... f5 {[%clk 0:01:12.3]} 22. Bd4
{[%clk 0:00:19.6]} 22... fxe4 {[%clk 0:01:10]} 23. Qxe4 {[%clk 0:00:20.5]} 23...
Qxe4 {[%clk 0:01:08.7]} 24. Rxe4 {[%clk 0:00:19]} 24... Bd6 {[%clk 0:01:04.8]}
25. Be5 {[%clk 0:00:18.2]} 25... Bxe5 {[%clk 0:01:01.1]} 26. fxe5 {[%clk
0:00:18.7]} 26... Rad8 {[%clk 0:00:53.1]} 27. Rd4 {[%clk 0:00:15.1]} 27... c5
{[%clk 0:00:53.1]} 28. Rxd8 {[%clk 0:00:13.5]} 28... Rxd8 {[%clk 0:00:54]} 29.
Kg2 {[%clk 0:00:13.8]} 29... Rd3 {[%clk 0:00:53.8]} 30. Kf2 {[%clk 0:00:13.6]}
30... Bxf3 {[%clk 0:00:53.9]} 31. Re1 {[%clk 0:00:13.7]} 31... Rxd2+ {[%clk
0:00:52.7]} 32. Kxf3 {[%clk 0:00:14.6]} 32... Kf7 {[%clk 0:00:44]} 33. Ke4
{[%clk 0:00:11.7]} 33... Ke6 {[%clk 0:00:40.4]} 34. Rg1 {[%clk 0:00:10.7]} 34...
g6 {[%clk 0:00:39]} 35. b4 {[%clk 0:00:10.1]} 35... cxb4 {[%clk 0:00:37.3]} 36.
axb4 {[%clk 0:00:11]} 36... Rxh2 {[%clk 0:00:37.6]} 37. Rg4 {[%clk 0:00:10.5]}
37... b6 {[%clk 0:00:35.4]} 38. Rf4 {[%clk 0:00:10.6]} 38... Re2+ {[%clk
0:00:35.6]} 39. Kd4 {[%clk 0:00:10.3]} 39... Rxe5 {[%clk 0:00:33.8]} 40. Rf8
{[%clk 0:00:10.2]} 40... Rd5+ {[%clk 0:00:33.5]} 41. Kc4 {[%clk 0:00:10.4]}
41... b5+ {[%clk 0:00:32.2]} 42. Kb3 {[%clk 0:00:10.3]} 42... c5 {[%clk
0:00:32.5]} 43. Rh8 {[%clk 0:00:09]} 43... h5 {[%clk 0:00:31.8]} 44. Ra8 {[%clk
0:00:08.4]} 44... c4+ {[%clk 0:00:31.9]} 45. Kc2 {[%clk 0:00:08.4]} 45... Rd6
{[%clk 0:00:32.8]} 46. Rg8 {[%clk 0:00:08.2]} 46... Kf5 {[%clk 0:00:32.9]} 0-1

[Event "*** Titled Tuesday Blitz"]
[Site "Chess.com"]
[Date "2021.03.30"]
[Round "1"]
[White "noblerone"]
[Black "Abund"]
[Result "0-1"]
[WhiteElo "2398"]
[BlackElo "2735"]
[TimeControl "180+1"]
[EndTime "10:07:19 PDT"]
[Termination "Abund won by resignation"]

1. d4 {[%clk 0:02:58.4]} 1... Nf6 {[%clk 0:02:56.6]} 2. Nf3 {[%clk 0:02:57.9]}
2... g6 {[%clk 0:02:56.7]} 3. Bg5 {[%clk 0:02:57.7]} 3... Bg7 {[%clk 0:02:56.5]}
4. Nbd2 {[%clk 0:02:57.5]} 4... d5 {[%clk 0:02:56.7]} 5. e3 {[%clk 0:02:57]}
5... Nbd7 {[%clk 0:02:57]} 6. Be2 {[%clk 0:02:56.8]} 6... O-O {[%clk 0:02:56.9]}
7. O-O {[%clk 0:02:57.1]} 7... b6 {[%clk 0:02:57.3]} 8. a4 {[%clk 0:02:55.3]}
8... a6 {[%clk 0:02:57.1]} 9. c3 {[%clk 0:02:34.3]} 9... Bb7 {[%clk 0:02:57]}
10. Qb3 {[%clk 0:02:30.3]} 10... c5 {[%clk 0:02:52.6]} 11. h3 {[%clk 0:02:26.7]}
11... h6 {[%clk 0:02:44.9]} 12. Bh4 {[%clk 0:02:15.4]} 12... e6 {[%clk
0:02:41.3]} 13. Ne5 {[%clk 0:02:11.1]} 13... Qc7 {[%clk 0:02:41.1]} 14. f4
{[%clk 0:02:04.4]} 14... Rab8 {[%clk 0:02:32.4]} 15. Rac1 {[%clk 0:01:50]} 15...
Rfc8 {[%clk 0:02:20.7]} 16. Qa2 {[%clk 0:01:45.8]} 16... cxd4 {[%clk 0:02:13.4]}
17. exd4 {[%clk 0:01:43.5]} 17... Qd6 {[%clk 0:02:09.4]} 18. Bd3 {[%clk
0:01:37]} 18... Ne4 {[%clk 0:02:07.8]} 19. Nxd7 {[%clk 0:01:25.9]} 19... Qxd7
{[%clk 0:02:01.1]} 20. Nf3 {[%clk 0:01:19.5]} 20... Qd6 {[%clk 0:01:41.2]} 21.
Ne5 {[%clk 0:01:17.3]} 21... Rc7 {[%clk 0:01:38.5]} 22. Rce1 {[%clk 0:01:04.8]}
22... Ra8 {[%clk 0:01:33]} 23. Re2 {[%clk 0:00:49.8]} 23... b5 {[%clk
0:01:21.1]} 24. axb5 {[%clk 0:00:45.1]} 24... axb5 {[%clk 0:01:20.9]} 25. Qb1
{[%clk 0:00:44.8]} 25... b4 {[%clk 0:01:18.9]} 26. c4 {[%clk 0:00:30.9]} 26...
Qb6 {[%clk 0:00:56.7]} 27. c5 {[%clk 0:00:29.7]} 27... Qa5 {[%clk 0:00:57.1]}
28. Bxe4 {[%clk 0:00:25.6]} 28... dxe4 {[%clk 0:00:57]} 29. Bf2 {[%clk
0:00:25.3]} 29... Bd5 {[%clk 0:00:56.5]} 30. Be3 {[%clk 0:00:24.7]} 30... Qb5
{[%clk 0:00:54.9]} 31. Rfe1 {[%clk 0:00:24.6]} 31... Rca7 {[%clk 0:00:54.9]} 32.
Qc2 {[%clk 0:00:24.1]} 32... b3 {[%clk 0:00:53.2]} 33. Qd2 {[%clk 0:00:24.1]}
33... Kh7 {[%clk 0:00:48.9]} 34. Kh2 {[%clk 0:00:24.4]} 34... h5 {[%clk
0:00:48.9]} 35. Rc1 {[%clk 0:00:21.5]} 35... f6 {[%clk 0:00:39.7]} 36. Nxg6
{[%clk 0:00:18.4]} 36... Kxg6 {[%clk 0:00:39.2]} 37. Rf2 {[%clk 0:00:17.5]}
37... f5 {[%clk 0:00:38.7]} 38. Re2 {[%clk 0:00:16.7]} 38... Bf6 {[%clk
0:00:38.2]} 39. Ree1 {[%clk 0:00:16.8]} 39... Rg7 {[%clk 0:00:37.2]} 40. Bf2
{[%clk 0:00:16.9]} 40... Kf7 {[%clk 0:00:36.7]} 41. Qe3 {[%clk 0:00:17.2]} 41...
Rag8 {[%clk 0:00:35.2]} 42. g3 {[%clk 0:00:17.9]} 42... h4 {[%clk 0:00:35.3]}
43. Rg1 {[%clk 0:00:16.4]} 43... hxg3+ {[%clk 0:00:34.9]} 44. Bxg3 {[%clk
0:00:17.3]} 44... Qd3 {[%clk 0:00:35]} 45. Rce1 {[%clk 0:00:13.7]} 45... Bxd4
{[%clk 0:00:34]} 0-1